[Event "Rapid Tournament (RAP)"]
[Site "Biel, Switzerland"]
[Date "2026.07.12"]
[Round "2.29"]
[White "Villiger, Jan"]
[Black "Habibi, Ali"]
[Result "1-0"]
[TimeControl "15 + 5"]
[WhiteTitle "-"]
[BlackTitle "-"]
[WhiteFideId "1340891"]
[BlackFideId "4604393"]
[WhiteElo "1846"]
[BlackElo "2187"]

1. e4 {[%clk 00:15:08]} {[%emt 00:00:01]} c5 {[%clk 00:14:25]} {[%emt
00:00:45]} 2. Nf3 {[%clk 00:15:10]} {[%emt 00:00:03]} a6 {[%clk 00:14:29]}
{[%emt 00:00:01]} 3. c4 {[%clk 00:15:13]} {[%emt 00:00:02]} d6 {[%clk
00:14:31]} {[%emt 00:00:04]} 4. Nc3 {[%clk 00:15:14]} {[%emt 00:00:03]} Nf6
{[%clk 00:14:32]} {[%emt 00:00:04]} 5. d4 {[%clk 00:15:11]} {[%emt 00:00:08]}
cxd4 {[%clk 00:14:35]} {[%emt 00:00:02]} 6. Nxd4 {[%clk 00:15:15]} {[%emt
00:00:02]} e6 {[%clk 00:14:39]} 7. Be2 {[%clk 00:15:12]} {[%emt 00:00:08]} Qc7
{[%clk 00:14:43]} {[%emt 00:00:02]} 8. O-O {[%clk 00:14:54]} {[%emt 00:00:22]}
Be7 {[%clk 00:14:47]} {[%emt 00:00:01]} 9. Be3 {[%clk 00:14:47]} {[%emt
00:00:12]} O-O {[%clk 00:14:49]} {[%emt 00:00:03]} 10. Qd2 {[%clk 00:14:33]}
{[%emt 00:00:19]} Nbd7 {[%clk 00:14:49]} {[%emt 00:00:05]} 11. f4 {[%clk
00:13:01]} {[%emt 00:01:37]} Re8 {[%clk 00:14:53]} {[%emt 00:00:02]} 12. Rfc1
{[%clk 00:12:34]} {[%emt 00:00:31]} b6 {[%clk 00:14:55]} {[%emt 00:00:04]} 13.
Bf3 {[%clk 00:12:33]} {[%emt 00:00:06]} Bb7 {[%clk 00:14:58]} {[%emt 00:00:02]}
14. Rab1 {[%clk 00:12:18]} {[%emt 00:00:20]} Rac8 {[%clk 00:14:59]} {[%emt
00:00:04]} 15. b3 {[%clk 00:11:45]} {[%emt 00:00:37]} Qb8 {[%clk 00:15:03]}
{[%emt 00:00:02]} 16. f5 {[%clk 00:11:02]} {[%emt 00:00:47]} Bf8 {[%clk
00:15:00]} {[%emt 00:00:07]} 17. fxe6 {[%clk 00:10:43]} {[%emt 00:00:26]} fxe6
{[%clk 00:15:01]} {[%emt 00:00:03]} 18. Bg5 {[%clk 00:08:41]} {[%emt 00:02:07]}
Qa8 {[%clk 00:14:48]} {[%emt 00:00:18]} 19. Re1 {[%clk 00:08:19]} {[%emt
00:00:28]} Nc5 {[%clk 00:14:34]} {[%emt 00:00:19]} 20. Bxf6 {[%clk 00:06:47]}
{[%emt 00:01:37]} gxf6 {[%clk 00:14:34]} {[%emt 00:00:04]} 21. b4 {[%clk
00:06:37]} {[%emt 00:00:16]} Nd7 {[%clk 00:14:35]} {[%emt 00:00:03]} 22. Bg4
{[%clk 00:06:15]} {[%emt 00:00:28]} Rxc4 {[%clk 00:12:39]} {[%emt 00:02:01]} 23.
Bxe6+ {[%clk 00:03:53]} {[%emt 00:02:27]} Rxe6 {[%clk 00:12:38]} {[%emt
00:00:06]} 24. Nxe6 {[%clk 00:03:57]} Be7 {[%emt 00:03:11]} 25. Nd5 {[%clk
00:02:57]} {[%emt 00:01:03]} Kf7 {[%clk 00:08:23]} {[%emt 00:01:16]} 26. Nd4
{[%clk 00:02:31]} {[%emt 00:00:31]} Bxd5 {[%clk 00:08:10]} {[%emt 00:00:18]} 27.
exd5 {[%clk 00:02:07]} {[%emt 00:00:29]} Qxd5 {[%clk 00:08:10]} {[%emt
00:00:04]} 28. Rbd1 {[%clk 00:02:02]} {[%emt 00:00:10]} Ne5 {[%clk 00:07:54]}
{[%emt 00:00:22]} 29. a3 {[%clk 00:01:23]} {[%emt 00:00:45]} b5 {[%clk
00:07:47]} {[%emt 00:00:11]} 30. Qe3 {[%clk 00:00:20]} {[%emt 00:01:07]} Qb7
{[%clk 00:07:23]} {[%emt 00:00:29]} 31. Qh6 {[%clk 00:00:15]} {[%emt 00:00:11]}
Qb6 {[%clk 00:07:11]} {[%emt 00:00:17]} 32. Qxh7+ {[%clk 00:00:14]} {[%emt
00:00:05]} Ke8 {[%clk 00:07:16]} 33. Qg8+ {[%clk 00:00:08]} {[%emt 00:00:12]}
Kd7 {[%clk 00:07:17]} {[%emt 00:00:02]} 34. Qe6+ {[%clk 00:00:11]} {[%emt
00:00:03]} Kd8 {[%clk 00:07:21]} {[%emt 00:00:01]} 35. Qd5 {[%clk 00:00:16]}
Nc6 {[%clk 00:06:53]} {[%emt 00:00:33]} 36. Re4 {[%clk 00:00:06]} {[%emt
00:00:14]} f5 {[%clk 00:06:50]} {[%emt 00:00:08]} 37. Rf4 {[%clk 00:00:06]}
{[%emt 00:00:06]} Kc7 {[%clk 00:06:33]} {[%emt 00:00:22]} 38. Kh1 {[%clk
00:00:09]} Nd8 {[%clk 00:05:44]} {[%emt 00:00:54]} 39. Rxf5 {[%clk 00:00:07]}
{[%emt 00:00:07]} Kb8 {[%clk 00:05:35]} {[%emt 00:00:14]} 40. Ne6 {[%clk
00:00:07]} {[%emt 00:00:05]} Nc6 {[%clk 00:05:01]} {[%emt 00:00:40]} 41. Rf7
{[%clk 00:00:08]} {[%emt 00:00:03]} Qe3 {[%clk 00:04:51]} {[%emt 00:00:14]} 42.
Rxe7 {[%clk 00:00:07]} {[%emt 00:00:07]} Nxe7 {[%clk 00:04:33]} {[%emt
00:00:23]} 43. Qxd6+ {[%clk 00:00:11]} {[%emt 00:00:01]} Ka8 {[%clk 00:04:28]}
{[%emt 00:00:10]} 44. Qxe7 {[%clk 00:00:15]} {[%emt 00:00:02]} Rc1 {[%clk
00:04:30]} {[%emt 00:00:02]} 45. Qd8+ {[%clk 00:00:16]} {[%emt 00:00:04]} Kb7
{[%clk 00:04:31]} {[%emt 00:00:03]} 46. Qd7+ {[%clk 00:00:20]} {[%emt
00:00:02]} Kb8 {[%clk 00:04:35]} {[%emt 00:00:02]} 47. Qd6+ {[%clk 00:00:16]}
{[%emt 00:00:09]} Ka7 {[%clk 00:04:38]} {[%emt 00:00:03]} 48. Nc5 {[%clk
00:00:08]} {[%emt 00:00:11]} Rxd1+ {[%clk 00:04:35]} {[%emt 00:00:08]} 49. Qxd1
{[%clk 00:00:12]} {[%emt 00:00:01]} Qe7 {[%clk 00:04:09]} {[%emt 00:00:32]} 50.
Qd7+ {[%clk 00:00:16]} {[%emt 00:00:01]} Qxd7 {[%clk 00:04:12]} 51. Nxd7 {[%clk
00:00:20]} {[%emt 00:00:01]} Kb7 {[%clk 00:04:14]} {[%emt 00:00:04]} 52. Nc5+
{[%clk 00:00:24]} {[%emt 00:00:01]} Kb6 {[%clk 00:04:18]} 53. h4 {[%clk
00:00:28]} {[%emt 00:00:01]} a5 {[%clk 00:04:23]} 54. h5 {[%clk 00:00:31]}
{[%emt 00:00:01]} 1-0

[Event "Rapid Tournament (RAP)"]
[Site "Biel, Switzerland"]
[Date "2026.07.12"]
[Round "2.30"]
[White "Kukushkin, Ivan"]
[Black "Bonanomi, Silvan"]
[Result "1-0"]
[TimeControl "15 + 5"]
[WhiteTitle "-"]
[BlackTitle "-"]
[WhiteFideId "11634103"]
[BlackFideId "1352644"]
[WhiteElo "2186"]
[BlackElo "1867"]

1. e4 {[%clk 00:15:09]} c5 {[%clk 00:15:07]} {[%emt 00:00:03]} 2. Nf3 {[%clk
00:15:11]} {[%emt 00:00:04]} Nf6 {[%clk 00:15:10]} {[%emt 00:00:01]} 3. Nc3
{[%clk 00:15:07]} {[%emt 00:00:09]} d6 {[%clk 00:15:13]} {[%emt 00:00:02]} 4.
Bc4 {[%clk 00:14:58]} {[%emt 00:00:14]} e6 {[%clk 00:15:12]} {[%emt 00:00:06]}
5. O-O {[%clk 00:14:57]} {[%emt 00:00:06]} Be7 {[%clk 00:15:15]} {[%emt
00:00:02]} 6. d4 {[%clk 00:14:45]} {[%emt 00:00:18]} O-O {[%clk 00:14:59]}
{[%emt 00:00:20]} 7. dxc5 {[%clk 00:14:44]} {[%emt 00:00:06]} dxc5 {[%clk
00:14:56]} {[%emt 00:00:08]} 8. Qe2 {[%clk 00:14:47]} {[%emt 00:00:02]} a6
{[%clk 00:14:05]} {[%emt 00:00:56]} 9. a4 {[%clk 00:14:23]} {[%emt 00:00:29]}
Nc6 {[%clk 00:14:05]} {[%emt 00:00:05]} 10. Rd1 {[%clk 00:14:24]} {[%emt
00:00:04]} Qc7 {[%clk 00:14:07]} {[%emt 00:00:03]} 11. e5 {[%clk 00:14:20]}
{[%emt 00:00:10]} Nd7 {[%clk 00:13:23]} {[%emt 00:00:49]} 12. Bf4 {[%clk
00:14:12]} {[%emt 00:00:12]} Rd8 {[%clk 00:12:10]} {[%emt 00:01:18]} 13. h4
{[%clk 00:13:14]} {[%emt 00:01:03]} b6 {[%clk 00:12:11]} {[%emt 00:00:04]} 14.
Ne4 {[%clk 00:12:45]} {[%emt 00:00:35]} Bb7 {[%clk 00:12:12]} {[%emt 00:00:03]}
15. Neg5 {[%clk 00:11:40]} {[%emt 00:01:10]} Nf8 {[%clk 00:11:25]} {[%emt
00:00:52]} 16. h5 {[%clk 00:10:53]} {[%emt 00:00:52]} h6 {[%clk 00:11:18]}
{[%emt 00:00:12]} 17. Ne4 {[%clk 00:10:52]} {[%emt 00:00:07]} Nd4 {[%clk
00:11:09]} {[%emt 00:00:13]} 18. Nxd4 {[%clk 00:10:35]} {[%emt 00:00:23]} cxd4
{[%clk 00:11:08]} {[%emt 00:00:06]} 19. Bd3 {[%clk 00:09:55]} {[%emt 00:00:45]}
a5 {[%clk 00:10:38]} {[%emt 00:00:35]} 20. Qg4 {[%clk 00:08:48]} {[%emt
00:01:11]} Kh8 {[%clk 00:10:13]} {[%emt 00:00:30]} 21. Nd6 {[%clk 00:07:46]}
{[%emt 00:01:08]} Bxd6 {[%clk 00:09:57]} {[%emt 00:00:20]} 22. exd6 {[%clk
00:07:48]} {[%emt 00:00:02]} Qc5 {[%clk 00:09:53]} {[%emt 00:00:11]} 23. Re1
{[%clk 00:07:09]} {[%emt 00:00:44]} f6 {[%clk 00:09:52]} {[%emt 00:00:05]} 24.
Qh4 {[%clk 00:05:38]} {[%emt 00:01:37]} Rd7 {[%clk 00:08:37]} {[%emt 00:01:20]}
25. b3 {[%clk 00:02:31]} {[%emt 00:03:12]} Rad8 {[%clk 00:08:34]} {[%emt
00:00:07]} 26. Qg4 {[%clk 00:01:55]} {[%emt 00:00:42]} e5 {[%clk 00:08:24]}
{[%emt 00:00:15]} 27. Bc1 {[%clk 00:01:51]} {[%emt 00:00:09]} Qxd6 {[%clk
00:08:24]} {[%emt 00:00:04]} 28. Ba3 {[%clk 00:01:54]} {[%emt 00:00:02]} Qd5
{[%clk 00:08:09]} {[%emt 00:00:21]} 29. Bc4 {[%clk 00:01:53]} {[%emt 00:00:06]}
Qc6 {[%clk 00:08:02]} {[%emt 00:00:11]} 30. Bxf8 {[%clk 00:01:38]} {[%emt
00:00:20]} Rxf8 {[%clk 00:08:02]} {[%emt 00:00:05]} 31. Bb5 {[%clk 00:01:41]}
{[%emt 00:00:02]} Qxc2 {[%clk 00:07:59]} {[%emt 00:00:08]} 32. Bxd7 {[%clk
00:01:31]} {[%emt 00:00:15]} Qxb3 {[%clk 00:07:52]} {[%emt 00:00:12]} 33. Bf5
{[%clk 00:01:34]} {[%emt 00:00:03]} Bd5 {[%clk 00:07:40]} {[%emt 00:00:17]} 34.
Rab1 {[%clk 00:01:26]} {[%emt 00:00:13]} Qxa4 {[%clk 00:07:43]} {[%emt
00:00:01]} 35. Rxb6 {[%clk 00:01:19]} {[%emt 00:00:12]} Qc4 {[%clk 00:07:24]}
{[%emt 00:00:24]} 36. Qg6 {[%clk 00:01:15]} {[%emt 00:00:09]} Bg8 {[%clk
00:06:54]} {[%emt 00:00:35]} 37. Rb7 {[%clk 00:01:16]} {[%emt 00:00:04]} Rf7
{[%clk 00:06:52]} {[%emt 00:00:07]} 38. Rb8 {[%clk 00:01:12]} {[%emt 00:00:08]}
1-0

[Event "Rapid Tournament (RAP)"]
[Site "Biel, Switzerland"]
[Date "2026.07.12"]
[Round "2.31"]
[White "Harish, Neeraj"]
[Black "Carey, Michael"]
[Result "1-0"]
[TimeControl "15 + 5"]
[WhiteTitle "-"]
[BlackTitle "-"]
[WhiteFideId "30958130"]
[BlackFideId "30923760"]
[WhiteElo "2140"]
[BlackElo "1850"]

1. e4 {[%clk 00:15:09]} {[%emt 00:17:18]} c5 {[%clk 00:15:09]} 2. d4 {[%clk
00:15:13]} {[%emt 00:00:02]} cxd4 {[%clk 00:15:13]} {[%emt 00:00:01]} 3. Qxd4
{[%clk 00:15:16]} {[%emt 00:00:01]} Nc6 {[%clk 00:15:15]} {[%emt 00:00:03]} 4.
Qd3 {[%clk 00:15:20]} {[%emt 00:00:02]} g6 {[%clk 00:15:18]} {[%emt 00:00:01]}
5. Nc3 {[%clk 00:15:22]} {[%emt 00:00:04]} Bg7 {[%clk 00:15:19]} {[%emt
00:00:04]} 6. Nf3 {[%clk 00:15:24]} {[%emt 00:00:02]} d6 {[%clk 00:15:19]}
{[%emt 00:00:06]} 7. Be2 {[%clk 00:15:27]} {[%emt 00:00:02]} Nf6 {[%clk
00:15:19]} {[%emt 00:00:05]} 8. O-O {[%clk 00:15:29]} {[%emt 00:00:02]} O-O
{[%clk 00:15:20]} {[%emt 00:00:05]} 9. Nd5 {[%clk 00:15:33]} {[%emt 00:00:01]}
Nd7 {[%clk 00:15:00]} {[%emt 00:00:25]} 10. c3 {[%clk 00:15:25]} {[%emt
00:00:13]} Nde5 {[%clk 00:14:35]} {[%emt 00:00:31]} 11. Nxe5 {[%clk 00:15:10]}
{[%emt 00:00:19]} Nxe5 {[%clk 00:14:38]} {[%emt 00:00:02]} 12. Qc2 {[%clk
00:15:01]} {[%emt 00:00:13]} Bd7 {[%clk 00:13:50]} {[%emt 00:00:53]} 13. Bg5
{[%clk 00:14:07]} {[%emt 00:00:59]} Nc6 {[%clk 00:13:39]} {[%emt 00:00:16]} 14.
Rad1 {[%clk 00:13:48]} {[%emt 00:00:25]} h6 {[%clk 00:13:24]} {[%emt 00:00:21]}
15. Bh4 {[%clk 00:12:30]} {[%emt 00:01:22]} Be6 {[%clk 00:12:55]} {[%emt
00:00:34]} 16. f4 {[%clk 00:11:05]} {[%emt 00:01:30]} f5 {[%clk 00:11:50]}
{[%emt 00:01:09]} 17. exf5 {[%clk 00:10:40]} {[%emt 00:00:30]} Bxf5 {[%clk
00:11:54]} {[%emt 00:00:02]} 18. Qb3 {[%clk 00:09:45]} {[%emt 00:01:00]} Rf7
{[%clk 00:06:57]} {[%emt 00:05:02]} 19. Qxb7 {[%clk 00:06:33]} {[%emt
00:03:17]} Qc8 {[%clk 00:06:59]} {[%emt 00:00:03]} 20. Ba6 {[%clk 00:05:49]}
{[%emt 00:00:49]} Kh7 {[%clk 00:06:31]} {[%emt 00:00:32]} 21. Rfe1 {[%clk
00:05:24]} {[%emt 00:00:31]} e6 {[%clk 00:06:15]} {[%emt 00:00:21]} 22. Qxc8
{[%emt 00:00:16]} 1-0

[Event "Rapid Tournament (RAP)"]
[Site "Biel, Switzerland"]
[Date "2026.07.12"]
[Round "2.32"]
[White "Grzeskowiak, Antoni"]
[Black "Erne, Raphael"]
[Result "0-1"]
[TimeControl "15 + 5"]
[WhiteTitle "-"]
[BlackTitle "-"]
[WhiteFideId "41855531"]
[BlackFideId "1341928"]
[WhiteElo "1844"]
[BlackElo "2122"]

1. d4 {[%clk 00:15:08]} d5 {[%clk 00:15:07]} {[%emt 00:00:04]} 2. Nf3 {[%clk
00:15:11]} {[%emt 00:00:03]} Nf6 {[%clk 00:15:09]} {[%emt 00:00:01]} 3. Bf4
{[%clk 00:15:14]} {[%emt 00:00:02]} c5 {[%clk 00:15:10]} {[%emt 00:00:04]} 4.
c3 {[%clk 00:15:17]} {[%emt 00:00:02]} Nc6 {[%clk 00:15:10]} {[%emt 00:00:05]}
5. e3 {[%clk 00:15:19]} {[%emt 00:00:03]} Qb6 {[%clk 00:15:09]} {[%emt
00:00:06]} 6. Qb3 {[%clk 00:15:22]} {[%emt 00:00:02]} c4 {[%clk 00:15:10]}
{[%emt 00:00:04]} 7. Qc2 {[%clk 00:15:26]} {[%emt 00:00:01]} Bf5 {[%clk
00:15:10]} {[%emt 00:00:05]} 8. Qc1 {[%clk 00:15:30]} {[%emt 00:00:01]} e6
{[%clk 00:15:09]} {[%emt 00:00:06]} 9. Nbd2 {[%clk 00:15:32]} {[%emt 00:00:02]}
Qd8 {[%clk 00:15:04]} {[%emt 00:00:10]} 10. Be2 {[%clk 00:15:23]} {[%emt
00:00:15]} h6 {[%clk 00:14:40]} {[%emt 00:00:29]} 11. h3 {[%clk 00:15:15]}
{[%emt 00:00:13]} Be7 {[%clk 00:14:39]} {[%emt 00:00:05]} 12. b3 {[%clk
00:14:21]} {[%emt 00:00:59]} b5 {[%clk 00:13:37]} {[%emt 00:01:07]} 13. b4
{[%clk 00:14:10]} {[%emt 00:00:17]} a5 {[%clk 00:13:16]} {[%emt 00:00:26]} 14.
a3 {[%clk 00:14:05]} {[%emt 00:00:10]} O-O {[%clk 00:13:05]} {[%emt 00:00:15]}
15. g4 {[%clk 00:13:51]} {[%emt 00:00:19]} Bh7 {[%clk 00:12:15]} {[%emt
00:00:55]} 16. Rg1 {[%clk 00:12:39]} {[%emt 00:01:18]} Ne4 {[%clk 00:08:57]}
{[%emt 00:03:22]} 17. Nxe4 {[%clk 00:11:52]} {[%emt 00:00:53]} Bxe4 {[%clk
00:08:56]} {[%emt 00:00:05]} 18. Nd2 {[%clk 00:11:48]} {[%emt 00:00:09]} Bh7
{[%clk 00:08:41]} {[%emt 00:00:20]} 19. Nf3 {[%clk 00:11:37]} {[%emt 00:00:17]}
axb4 {[%clk 00:08:15]} {[%emt 00:00:31]} 20. axb4 {[%clk 00:11:35]} {[%emt
00:00:07]} Bxb4 {[%clk 00:05:06]} {[%emt 00:03:14]} 21. cxb4 {[%clk 00:11:26]}
{[%emt 00:00:14]} Nxb4 {[%clk 00:05:09]} {[%emt 00:00:02]} 22. Rxa8 {[%clk
00:11:10]} {[%emt 00:00:21]} Qxa8 {[%clk 00:05:12]} {[%emt 00:00:02]} 23. Kf1
{[%clk 00:11:01]} {[%emt 00:00:13]} Bd3 {[%clk 00:04:30]} {[%emt 00:00:48]} 24.
Qb2 {[%clk 00:09:08]} {[%emt 00:01:58]} Bxe2+ {[%clk 00:03:29]} {[%emt
00:01:05]} 25. Qxe2 {[%clk 00:08:50]} {[%emt 00:00:23]} Nd3 {[%clk 00:03:15]}
{[%emt 00:00:20]} 26. g5 {[%clk 00:08:42]} {[%emt 00:00:13]} h5 {[%clk
00:02:03]} {[%emt 00:01:17]} 27. g6 {[%clk 00:05:51]} {[%emt 00:02:56]} fxg6
{[%clk 00:02:04]} {[%emt 00:00:04]} 28. Ne5 {[%clk 00:04:53]} {[%emt 00:01:02]}
Rxf4 {[%clk 00:01:11]} {[%emt 00:00:59]} 29. exf4 {[%clk 00:04:17]} {[%emt
00:00:41]} Qa1+ {[%clk 00:01:14]} 30. Kg2 {[%clk 00:04:15]} {[%emt 00:00:07]}
Nxf4+ {[%clk 00:01:18]} {[%emt 00:00:01]} 31. Kf3 {[%clk 00:04:06]} {[%emt
00:00:14]} Qxg1 {[%clk 00:01:04]} {[%emt 00:00:20]} 32. Kxf4 {[%clk 00:04:05]}
{[%emt 00:00:06]} Qh2+ {[%clk 00:01:01]} {[%emt 00:00:07]} 33. Ke3 {[%clk
00:03:42]} {[%emt 00:00:28]} Qxh3+ {[%clk 00:00:45]} {[%emt 00:00:22]} 34. f3
{[%clk 00:03:45]} {[%emt 00:00:02]} Qf5 {[%clk 00:00:22]} {[%emt 00:00:28]} 35.
Qb2 {[%clk 00:03:34]} {[%emt 00:00:16]} Qg5+ {[%clk 00:00:24]} {[%emt
00:00:03]} 36. Kf2 {[%clk 00:03:34]} {[%emt 00:00:05]} Qh4+ {[%clk 00:00:27]}
{[%emt 00:00:02]} 37. Ke3 {[%clk 00:03:37]} {[%emt 00:00:02]} Qe1+ {[%clk
00:00:27]} {[%emt 00:00:04]} 38. Kf4 {[%clk 00:03:25]} {[%emt 00:00:17]} Qh4+
{[%clk 00:00:15]} {[%emt 00:00:18]} 39. Ke3 {[%clk 00:03:29]} {[%emt 00:00:01]}
Qg5+ {[%clk 00:00:18]} {[%emt 00:00:02]} 40. Kf2 {[%clk 00:03:33]} {[%emt
00:00:01]} Qf4 {[%clk 00:00:11]} {[%emt 00:00:13]} 41. Qa1 {[%clk 00:03:18]}
{[%emt 00:00:19]} h4 {[%clk 00:00:09]} {[%emt 00:00:07]} 42. Qa8+ {[%clk
00:02:56]} {[%emt 00:00:27]} Kh7 {[%clk 00:00:13]} 43. Qa7 {[%clk 00:01:53]}
{[%emt 00:01:07]} Qd2+ {[%clk 00:00:09]} {[%emt 00:00:09]} 44. Kf1 {[%clk
00:01:49]} {[%emt 00:00:09]} Qd1+ {[%clk 00:00:14]} 45. Kf2 {[%clk 00:01:53]}
{[%emt 00:00:01]} Qd2+ {[%clk 00:00:18]} 46. Kf1 {[%clk 00:01:57]} Qc1+ {[%clk
00:00:17]} {[%emt 00:00:07]} 47. Kf2 {[%clk 00:02:00]} {[%emt 00:00:02]} Qc2+
{[%clk 00:00:19]} {[%emt 00:00:03]} 48. Kf1 {[%clk 00:02:00]} {[%emt 00:00:04]}
b4 {[%clk 00:00:13]} {[%emt 00:00:12]} 49. Qe7 {[%clk 00:01:51]} {[%emt
00:00:13]} Qd1+ {[%clk 00:00:12]} {[%emt 00:00:07]} 50. Kg2 {[%clk 00:01:52]}
{[%emt 00:00:04]} Qe2+ {[%clk 00:00:10]} {[%emt 00:00:07]} 51. Kh3 {[%clk
00:01:52]} {[%emt 00:00:04]} Qf1+ {[%clk 00:00:08]} {[%emt 00:00:08]} 52. Kxh4
{[%clk 00:01:51]} {[%emt 00:00:06]} Qf2+ {[%clk 00:00:12]} 53. Kg4 {[%clk
00:01:49]} {[%emt 00:00:07]} Qxd4+ {[%clk 00:00:16]} {[%emt 00:00:03]} 54. f4
{[%clk 00:01:52]} {[%emt 00:00:01]} Qg1+ {[%clk 00:00:17]} {[%emt 00:00:03]} 55.
Kf3 {[%clk 00:01:48]} {[%emt 00:00:09]} Qh1+ {[%clk 00:00:21]} {[%emt
00:00:01]} 56. Kg3 {[%clk 00:01:48]} {[%emt 00:00:06]} Qg1+ {[%clk 00:00:23]}
{[%emt 00:00:03]} 57. Kh3 {[%clk 00:01:44]} {[%emt 00:00:08]} Qe3+ {[%clk
00:00:24]} {[%emt 00:00:05]} 58. Kg4 {[%clk 00:01:45]} {[%emt 00:00:04]} Qe2+
{[%clk 00:00:27]} {[%emt 00:00:01]} 59. Kh3 {[%clk 00:01:44]} {[%emt 00:00:06]}
Qf1+ {[%clk 00:00:27]} {[%emt 00:00:05]} 60. Kg4 {[%clk 00:01:45]} {[%emt
00:00:04]} Qg2+ {[%clk 00:00:31]} {[%emt 00:00:02]} 61. Kh4 {[%clk 00:01:47]}
{[%emt 00:00:02]} g5+ {[%clk 00:00:14]} {[%emt 00:00:23]} 62. fxg5 {[%clk
00:01:36]} {[%emt 00:00:15]} Qh2+ {[%clk 00:00:18]} {[%emt 00:00:01]} 63. Kg4
{[%clk 00:01:34]} {[%emt 00:00:07]} Qxe5 {[%clk 00:00:20]} {[%emt 00:00:03]} 64.
Qe8 {[%clk 00:01:08]} {[%emt 00:00:32]} Qf5+ {[%clk 00:00:24]} {[%emt
00:00:01]} 65. Kh4 {[%clk 00:01:09]} {[%emt 00:00:04]} Qe4+ {[%clk 00:00:19]}
{[%emt 00:00:10]} 66. Kg3 {[%clk 00:01:05]} {[%emt 00:00:09]} Qg6 {[%clk
00:00:20]} {[%emt 00:00:03]} 67. Qd8 {[%clk 00:00:46]} {[%emt 00:00:24]} b3
{[%clk 00:00:19]} {[%emt 00:00:07]} 68. Kg4 {[%clk 00:00:40]} {[%emt 00:00:10]}
b2 {[%clk 00:00:19]} {[%emt 00:00:05]} 69. Qb8 {[%clk 00:00:39]} {[%emt
00:00:06]} Qf5+ {[%clk 00:00:22]} {[%emt 00:00:02]} 0-1

[Event "Rapid Tournament (RAP)"]
[Site "Biel, Switzerland"]
[Date "2026.07.12"]
[Round "2.33"]
[White "Menzi, Jonas"]
[Black "Tan, Jimmy"]
[Result "1-0"]
[TimeControl "15 + 5"]
[WhiteTitle "-"]
[BlackTitle "-"]
[WhiteFideId "1345133"]
[BlackFideId "129057499"]
[WhiteElo "2114"]
[BlackElo "1845"]

1. e4 {[%clk 00:15:08]} {[%emt 00:10:22]} c6 {[%clk 00:15:07]} {[%emt
00:00:03]} 2. d4 {[%clk 00:15:11]} {[%emt 00:00:04]} d5 {[%clk 00:15:11]} 3.
exd5 {[%clk 00:15:15]} {[%emt 00:00:01]} cxd5 {[%clk 00:15:15]} {[%emt
00:00:01]} 4. Bd3 {[%clk 00:15:18]} {[%emt 00:00:01]} Nc6 {[%clk 00:15:19]}
{[%emt 00:00:02]} 5. c3 {[%clk 00:15:22]} {[%emt 00:00:03]} Nf6 {[%clk
00:15:23]} 6. h3 {[%clk 00:15:26]} g6 {[%clk 00:15:27]} {[%emt 00:00:01]} 7.
Nf3 {[%clk 00:15:29]} {[%emt 00:00:02]} Bf5 {[%clk 00:15:30]} {[%emt 00:00:02]}
8. O-O {[%clk 00:15:32]} {[%emt 00:00:02]} e6 {[%clk 00:15:25]} {[%emt
00:00:10]} 9. Bf4 {[%clk 00:14:52]} {[%emt 00:00:44]} Bd6 {[%clk 00:14:46]}
{[%emt 00:00:43]} 10. Bxd6 {[%clk 00:14:54]} {[%emt 00:00:04]} Qxd6 {[%clk
00:14:51]} {[%emt 00:00:01]} 11. Re1 {[%clk 00:14:49]} {[%emt 00:00:10]} Bxd3
{[%clk 00:13:31]} {[%emt 00:01:25]} 12. Qxd3 {[%clk 00:14:51]} {[%emt
00:00:02]} O-O {[%clk 00:12:31]} {[%emt 00:01:05]} 13. Nbd2 {[%clk 00:13:29]}
{[%emt 00:01:27]} Rab8 {[%clk 00:09:31]} {[%emt 00:03:06]} 14. a4 {[%clk
00:12:23]} {[%emt 00:01:10]} Rfc8 {[%clk 00:08:55]} {[%emt 00:00:41]} 15. Ne5
{[%clk 00:12:07]} {[%emt 00:00:22]} Kg7 {[%clk 00:07:13]} {[%emt 00:01:47]} 16.
Re2 {[%clk 00:11:51]} {[%emt 00:00:21]} Nd7 {[%clk 00:05:56]} {[%emt 00:01:22]}
17. f4 {[%clk 00:08:42]} {[%emt 00:03:13]} a6 {[%clk 00:04:36]} {[%emt
00:01:26]} 18. Rae1 {[%clk 00:08:07]} {[%emt 00:00:39]} Re8 {[%clk 00:03:17]}
{[%emt 00:01:25]} 19. Ndf3 {[%clk 00:04:21]} {[%emt 00:03:51]} Nf6 {[%clk
00:02:49]} {[%emt 00:00:33]} 20. Ng5 {[%clk 00:03:37]} {[%emt 00:00:49]} Nd8
{[%clk 00:02:26]} {[%emt 00:00:28]} 21. Qg3 {[%clk 00:02:29]} {[%emt 00:01:12]}
Nh5 {[%clk 00:01:57]} {[%emt 00:00:34]} 22. Qe3 {[%clk 00:00:21]} {[%emt
00:02:13]} f6 {[%clk 00:01:58]} {[%emt 00:00:04]} 23. g4 {[%clk 00:00:25]} fxg5
{[%clk 00:01:50]} {[%emt 00:00:14]} 24. gxh5 {[%clk 00:00:17]} {[%emt
00:00:12]} gxf4 {[%clk 00:00:25]} {[%emt 00:01:30]} 25. Qxf4 {[%clk 00:00:21]}
Rf8 {[%clk 00:00:14]} {[%emt 00:00:16]} 26. Qg4 {[%clk 00:00:15]} {[%emt
00:00:11]} Rf6 {[%clk 00:00:09]} {[%emt 00:00:11]} 27. hxg6 {[%clk 00:00:16]}
{[%emt 00:00:03]} hxg6 {[%clk 00:00:13]} {[%emt 00:00:01]} 28. Rg2 {[%clk
00:00:18]} {[%emt 00:00:03]} Nf7 {[%clk 00:00:07]} {[%emt 00:00:11]} 29. Nxg6
{[%clk 00:00:16]} {[%emt 00:00:07]} Nh6 {[%clk 00:00:00]} {[%emt 00:00:09]} 30.
Qh5 {[%clk 00:00:16]} {[%emt 00:00:05]} 1-0